fUST/lending_fUST_20250121
["ID","MTS","AMOUNT","RATE_DAILY","PERIOD"]
[349845074,1737457883340,500.0,0.00023442,120]
[349845075,1737457884100,500.0,0.00023442,120]
[349845076,1737457884880,500.0,0.00023442,120]
[349845077,1737457885736,500.0,0.00023442,120]
[349845078,1737457886438,500.0,0.00023442,120]
[349845079,1737457887217,500.0,0.00023442,120]
[349845080,1737457887994,500.0,0.00023442,120]
[349845081,1737457888747,500.0,0.00023442,120]
[349845082,1737457889509,500.0,0.00023442,120]
[349845083,1737457890271,500.0,0.00023442,120]
[349845084,1737457891035,500.0,0.00023442,120]
[349845085,1737457891806,500.0,0.00023442,120]
[349845086,1737457892566,500.0,0.00023442,120]
[349845087,1737457893343,500.0,0.00023442,120]
[349845088,1737457894098,500.0,0.00023442,120]
[349845089,1737457894859,500.0,0.00023442,120]
[349845090,1737457895631,500.0,0.00023442,120]
[349845091,1737457896476,500.0,0.00023442,120]
[349845092,1737457897256,500.0,0.00023442,120]
[349845093,1737457898039,500.0,0.00023442,120]
[349845094,1737457898825,500.0,0.00023442,120]
[349845095,1737457899595,500.0,0.00023442,120]
[349845096,1737457900367,500.0,0.00023442,120]
[349845097,1737457901147,500.0,0.00023442,120]
[349845098,1737457901906,500.0,0.00023442,120]
[349845099,1737457902676,500.0,0.00023442,120]
[349845100,1737457903459,500.0,0.00023442,120]
[349845101,1737457904226,500.0,0.00023442,120]
[349845102,1737457905012,500.0,0.00023442,120]
[349845103,1737457905788,500.0,0.00023442,120]
[349845104,1737457906547,500.0,0.00023442,120]
[349845105,1737457907317,500.0,0.00023442,120]
[349845106,1737457908090,500.0,0.00023442,120]
[349845107,1737457908856,500.0,0.00023442,120]
[349845108,1737457909169,201.01809521,0.00024,120]
[349845109,1737457909621,500.0,0.00023442,120]
[349845110,1737457910386,500.0,0.00023442,120]
[349845111,1737457911146,590.58,0.00023442,120]
[349845113,1737457933739,210.521195,0.00013973,2]
[349845114,1737458041282,500.0,0.00023442,120]
[349845115,1737458106446,1732.98,0.00023955,120]
[349845128,1737458902668,212.886683,0.00013973,2]
[349845183,1737459032676,-212.886683,0.00020447,2]
[349845184,1737459032688,-500.0,0.00020613,2]
[349845185,1737459032698,-5009.06029402,0.00021,2]
[349845186,1737459032710,-2884.2008193,0.00021067,2]
[349845187,1737459032720,-423.33045019,0.00021817,2]
[349845188,1737459032731,-573.87667949,0.00021855,2]
[349845189,1737459032743,-209.9,0.000219,2]
[349845190,1737459032753,-300.0,0.00021915,2]
[349845191,1737459032763,-500.0,0.00021916,7]
[349845192,1737459032774,-154.35,0.00021917,2]
[349845193,1737459032784,-298.70397907,0.00021917,2]
[349845194,1737459032794,-500.0,0.00021917,3]
[349845195,1737459032803,-173.997,0.00021917,2]
[349845196,1737459032812,-500.0,0.00021917,3]
[349845197,1737459032958,-500.0,0.00021917,3]
[349845198,1737459032974,-500.0,0.00021917,3]
[349845199,1737459032985,-500.0,0.00021917,3]
[349845200,1737459032994,-500.0,0.00021917,3]
[349845201,1737459033003,-500.0,0.00021917,3]
[349845202,1737459033012,-500.0,0.00021917,3]
[349845203,1737459033021,-624.44037301,0.00021917,3]
[349845204,1737459033031,-500.0,0.00021917,3]
[349845205,1737459033040,-500.0,0.00021917,3]
[349845206,1737459033049,-500.0,0.00021917,3]
[349845207,1737459033058,-500.0,0.00021917,3]
[349845208,1737459033068,-500.0,0.00021917,3]
[349845209,1737459033078,-500.0,0.00021917,3]
[349845210,1737459033087,-500.0,0.00021917,3]
[349845211,1737459033097,-500.0,0.00021917,3]
[349845212,1737459033106,-500.0,0.00021917,3]
[349845213,1737459033120,-500.0,0.00021917,3]
[349845214,1737459033129,-500.0,0.00021917,3]
[349845215,1737459033139,-500.0,0.00021917,2]
[349845216,1737459033149,-420.17864886,0.00021917,3]
[349845217,1737459033158,-500.0,0.00021917,3]
[349845218,1737459033168,-500.0,0.00021917,3]
[349845219,1737459033177,-500.0,0.00021917,3]
[349845220,1737459033187,-500.0,0.00021917,3]
[349845221,1737459033196,-500.0,0.00021917,3]
[349845222,1737459033206,-2437.56,0.00021917,3]
[349845223,1737459033216,-500.0,0.00021917,3]
[349845224,1737459033225,-604.84275786,0.00021917,3]
[349845225,1737459033234,-500.0,0.00021917,3]
[349845226,1737459033243,-711.42,0.00021917,3]
[349845227,1737459033252,-367.85703139,0.00021917,3]
[349845228,1737459033262,-500.0,0.00021917,3]
[349845229,1737459033272,-555.52,0.00021917,3]
[349845230,1737459033281,-358.32970792,0.00021917,3]
[349845231,1737459033291,-500.0,0.00021917,3]
[349845232,1737459033302,-1137.68,0.00021917,3]
[349845233,1737459033311,-806.95,0.00021917,3]
[349845234,1737459033323,-500.0,0.00021917,3]
[349845235,1737459033332,-500.0,0.00021917,3]
[349845236,1737459033342,-6004.05,0.00021917,3]
[349845237,1737459033351,-500.0,0.00021917,3]
[349845238,1737459033361,-500.0,0.00021917,3]
[349845239,1737459033376,-500.0,0.00021917,3]
[349845240,1737459033386,-3723.8,0.00021917,3]
[349845241,1737459033395,-500.0,0.00021917,3]
[349845242,1737459033405,-500.0,0.00021917,3]
[349845243,1737459033415,-500.0,0.00021917,3]
[349845244,1737459033424,-500.0,0.00021917,3]
[349845245,1737459033433,-500.0,0.00021917,3]
[349845246,1737459033443,-500.0,0.00021917,3]
[349845247,1737459033453,-547.05,0.00021917,3]
[349845248,1737459033462,-500.0,0.00021917,3]
[349845249,1737459033472,-327.96710661,0.00021917,3]
[349845251,1737459033494,-474.91289339,0.00021917,3]
[349845252,1737459033504,-500.0,0.00021917,3]
[349845253,1737459033514,-2465.28,0.00021917,3]
[349845254,1737459033524,-500.0,0.00021917,3]
[349845255,1737459033534,-500.0,0.00021917,3]
[349845256,1737459033545,-500.0,0.00021917,3]
[349845257,1737459033557,-500.0,0.00021917,3]
[349845258,1737459033570,-500.0,0.00021917,3]
[349845259,1737459033581,-500.0,0.00021917,3]
[349845260,1737459033593,-740.37,0.00021917,3]
[349845261,1737459033603,-500.0,0.00021917,3]
[349845262,1737459033617,-587.66,0.00021917,3]
[349845263,1737459033632,-500.0,0.00021917,3]
[349845264,1737459033645,-10944.66,0.00021917,3]
[349845265,1737459033658,-577.43932216,0.00021917,3]
[349845266,1737459033669,-512.72772952,0.00021917,3]
[349845267,1737459033680,-500.0,0.00021917,3]
[349845268,1737459033690,-921.07,0.00021917,3]
[349845269,1737459033701,-500.0,0.00021917,3]
[349845270,1737459033711,-500.0,0.00021917,3]
[349845271,1737459033722,-756.72,0.00021917,3]
[349845272,1737459033732,-1318.3,0.00021917,3]
[349845273,1737459033743,-500.0,0.00021917,3]
[349845274,1737459033753,-503.10761157,0.00021917,3]
[349845275,1737459033763,-500.0,0.00021917,3]
[349845276,1737459033772,-500.0,0.00021917,3]
[349845277,1737459033782,-500.0,0.00021917,3]
[349845278,1737459033793,-500.0,0.00021917,3]
[349845279,1737459033803,-500.0,0.00021917,3]
[349845280,1737459033813,-500.0,0.00021917,3]
[349845281,1737459033823,-500.0,0.00021917,3]
[349845282,1737459033832,-500.0,0.00021917,3]
[349845283,1737459033842,-500.0,0.00021917,3]
[349845284,1737459033852,-737.03,0.00021917,3]
[349845285,1737459033862,-500.0,0.00021917,3]
[349845286,1737459033878,-500.0,0.00021917,3]
[349845287,1737459033888,-345.37005832,0.00022,2]
[349845288,1737459033898,-14042.77698178,0.00022,2]
[349845289,1737459033908,-23550.28994532,0.00022,2]
[349845290,1737459033918,-1000.0,0.00022,2]
[349845291,1737459033928,-156.0,0.00022,2]
[349845292,1737459033937,-306.0,0.00022,2]
[349845293,1737459033947,-327.984,0.0002204,2]
[349845294,1737459033957,-500.0,0.00022054,3]
[349845295,1737459033968,-500.0,0.00022054,3]
[349845296,1737459033978,-500.0,0.00022054,3]
[349845297,1737459033988,-500.0,0.00022054,3]
[349845298,1737459033998,-500.0,0.00022054,3]
[349845299,1737459034008,-636.98348261,0.00022054,3]
[349845300,1737459034018,-500.0,0.00022054,3]
[349845301,1737459034028,-170.88,0.00022054,3]
[349845302,1737459034038,-500.0,0.00022054,3]
[349845303,1737459034048,-500.0,0.00022054,3]
[349845304,1737459034058,-500.0,0.00022054,3]
[349845305,1737459034068,-500.0,0.00022054,3]
[349845306,1737459034077,-500.0,0.00022054,3]
[349845307,1737459034087,-500.0,0.00022054,2]
[349845308,1737459034097,-2437.56,0.00022054,3]
[349845309,1737459034106,-500.0,0.00022054,3]
[349845310,1737459034121,-500.0,0.00022054,3]
[349845311,1737459034131,-711.42,0.00022054,3]
[349845312,1737459034140,-500.0,0.00022054,3]
[349845313,1737459034150,-555.52,0.00022054,3]
[349845314,1737459034160,-500.0,0.00022054,3]
[349845315,1737459034169,-1137.68,0.00022054,3]
[349845316,1737459034179,-806.95,0.00022054,3]
[349845317,1737459034189,-500.0,0.00022054,3]
[349845318,1737459034199,-500.0,0.00022054,3]
[349845319,1737459034209,-6004.05,0.00022054,3]
[349845320,1737459034219,-500.0,0.00022054,3]
[349845321,1737459034229,-500.0,0.00022054,3]
[349845322,1737459034238,-3723.8,0.00022054,3]
[349845323,1737459034248,-500.0,0.00022054,3]
[349845324,1737459034258,-500.0,0.00022054,3]
[349845325,1737459034268,-500.0,0.00022054,3]
[349845326,1737459034278,-500.0,0.00022054,3]
[349845327,1737459034288,-500.0,0.00022054,3]
[349845328,1737459034298,-547.05,0.00022054,3]
[349845329,1737459034308,-500.0,0.00022054,3]
[349845330,1737459034318,-802.88,0.00022054,3]
[349845331,1737459034328,-500.0,0.00022054,3]
[349845332,1737459034337,-177.52562414,0.00022054,3]
[349845380,1737459038397,-509.22,0.00021917,3]
[349845381,1737459038407,-2287.75437586,0.00022054,3]
[349845382,1737459038417,-500.0,0.00022054,3]
[349845383,1737459038426,-500.0,0.00022054,3]
[349845384,1737459038436,-500.0,0.00022054,3]
[349845385,1737459038446,-740.37,0.00022054,3]
[349845386,1737459038455,-587.66,0.00022054,3]
[349845387,1737459038464,-10944.66,0.00022054,3]
[349845388,1737459038474,-500.0,0.00022054,3]
[349845389,1737459038484,-921.07,0.00022054,3]
[349845390,1737459038493,-500.0,0.00022054,3]
[349845391,1737459038503,-756.72,0.00022054,3]
[349845392,1737459038512,-1318.3,0.00022054,3]
[349845393,1737459038523,-584.46,0.00022054,3]
[349845394,1737459038532,-500.0,0.00022054,3]
[349845395,1737459038541,-500.0,0.00022054,3]
[349845396,1737459038554,-500.0,0.00022054,3]
[349845397,1737459038564,-500.0,0.00022054,3]
[349845398,1737459038574,-500.0,0.00022054,3]
[349845400,1737459038584,-500.0,0.00022054,3]
[349845402,1737459038595,-737.03,0.00022054,3]
[349845404,1737459038605,-500.0,0.00022054,3]
[349845406,1737459038614,-500.0,0.00022054,3]
[349845408,1737459038627,-509.22,0.00022054,3]
[349845410,1737459038638,-4746.29342414,0.00022116,2]
[349845413,1737459038651,-1347.30529547,0.00022116,2]
[349845415,1737459038660,-19716.55970803,0.00022116,4]
[349845928,1737459043572,-4905.12434979,0.00022116,4]
[349846230,1737459046411,-311.645186,0.00021917,3]
[349846232,1737459046423,-188.354814,0.00021917,3]
[349846234,1737459046432,-2234.43,0.00021917,3]
[349846236,1737459046442,-2234.43,0.00022054,3]
[349846238,1737459046452,-15677.31594218,0.00022116,4]
[349846240,1737459046462,-423.33045017,0.00022179,2]
[349846242,1737459046471,-500.0,0.00022191,3]
[349846244,1737459046481,-500.0,0.00022191,3]
[349846246,1737459046492,-500.0,0.00022191,3]
[349846248,1737459046502,-500.0,0.00022191,3]
[349846250,1737459046511,-500.0,0.00022191,3]
[349846252,1737459046521,-245.16235632,0.00022191,3]
[349846254,1737459046531,-500.0,0.00022191,3]
[349846256,1737459046541,-500.0,0.00022191,3]
[349846258,1737459046553,-500.0,0.00022191,3]
[349846260,1737459046565,-217.8055382,0.00022191,3]
[349846262,1737459046576,-500.0,0.00022191,3]
[349846265,1737459046587,-500.0,0.00022191,2]
[349846267,1737459046597,-500.0,0.00022191,3]
[349846269,1737459046607,-476.7359679,0.00022191,3]
[349846271,1737459046616,-500.0,0.00022191,3]
[349846284,1737459046724,-1137.68,0.00022191,3]
[349846286,1737459046733,-806.95,0.00022191,3]
[349846288,1737459046742,-500.0,0.00022191,3]
[349846290,1737459046751,-500.0,0.00022191,3]
[349846292,1737459046760,-6004.05,0.00022191,3]
[349846294,1737459046770,-500.0,0.00022191,3]
[349846296,1737459046779,-500.0,0.00022191,3]
[349846298,1737459046788,-3723.8,0.00022191,3]
[349846300,1737459046797,-500.0,0.00022191,3]
[349846302,1737459046806,-500.0,0.00022191,3]
[349846304,1737459046815,-238.49526923,0.00022191,3]
[349846307,1737459046827,-261.50473077,0.00022191,3]
[349846309,1737459046837,-500.0,0.00022191,3]
[349846311,1737459046845,-500.0,0.00022191,3]
[349846313,1737459046855,-547.05,0.00022191,3]
[349846315,1737459046864,-500.0,0.00022191,3]
[349846317,1737459046876,-802.88,0.00022191,3]
[349846319,1737459046885,-500.0,0.00022191,3]
[349846321,1737459046894,-2465.28,0.00022191,3]
[349846323,1737459046903,-500.0,0.00022191,3]
[349846325,1737459046911,-500.0,0.00022191,3]
[349846327,1737459046920,-500.0,0.00022191,3]
[349846329,1737459046929,-740.37,0.00022191,3]
[349846331,1737459046938,-587.66,0.00022191,3]
[349846333,1737459046947,-8399.10824601,0.00022191,3]
[349846335,1737459046959,-2545.55175399,0.00022191,3]
[349846337,1737459046967,-500.0,0.00022191,3]
[349846339,1737459046976,-921.07,0.00022191,3]
[349846341,1737459046986,-500.0,0.00022191,3]
[349846343,1737459046995,-756.72,0.00022191,3]
[349846345,1737459047004,-1318.3,0.00022191,3]
[349846347,1737459047013,-500.0,0.00022191,3]
[349846349,1737459047023,-500.0,0.00022191,3]
[349846351,1737459047032,-500.0,0.00022191,3]
[349846353,1737459047042,-500.0,0.00022191,3]
[349846355,1737459047051,-500.0,0.00022191,3]
[349846357,1737459047060,-500.0,0.00022191,3]
[349846359,1737459047069,-42.97853045,0.00022191,3]
[349848962,1737459653728,7846.15,0.00024,120]
[349848966,1737459900087,204.001263,0.00013973,2]
[349849623,1737460238696,-204.001263,0.00020447,2]
[349849624,1737460238706,-314.443,0.0002149,2]
[349849625,1737460238716,-382.584453,0.000219,2]
[349849627,1737460238726,-874.59309344,0.000219,3]
[349849629,1737460238734,-173.9970783,0.00021916,2]
[349849631,1737460238744,-300.0,0.00021916,2]
[349849633,1737460238753,-500.0,0.00021917,3]
[349849635,1737460238763,-500.0,0.00021917,3]
[349849637,1737460238772,-500.0,0.00021917,3]
[349849639,1737460238782,-500.0,0.00021917,3]
[349849641,1737460238792,-500.0,0.00021917,3]
[349849643,1737460238801,-363.31586922,0.00021917,3]
[349849645,1737460238811,-500.0,0.00021917,2]
[349849647,1737460238820,-500.0,0.00021917,3]
[349849649,1737460238831,-584.46,0.00021917,3]
[349849651,1737460238841,-261.93911488,0.00021917,3]
[349849653,1737460238850,-351.59736696,0.00021917,3]
[349849655,1737460238860,-995.47,0.00021917,3]
[349849657,1737460238870,-500.0,0.00021917,3]
[349849659,1737460238884,-760.48,0.00021917,3]
[349849661,1737460238897,-500.0,0.00021917,3]
[349849663,1737460238907,-5253.55,0.00021917,3]
[349849665,1737460238916,-500.0,0.00021917,3]
[349849667,1737460238927,-500.0,0.00021917,3]
[349849680,1737460239028,-500.0,0.00021917,3]
[349849683,1737460239067,-163.1,0.00021917,3]
[349849685,1737460239078,-500.0,0.00021917,3]
[349849687,1737460239088,-500.0,0.00021917,3]
[349849689,1737460239097,-500.0,0.00021917,3]
[349849691,1737460239107,-500.0,0.00021917,3]
[349849693,1737460239116,-500.0,0.00021917,3]
[349849695,1737460239125,-500.0,0.00021917,3]
[349849697,1737460239134,-461.77,0.00021917,3]
[349849699,1737460239144,-3258.32,0.00021917,3]
[349849701,1737460239153,-500.0,0.00021917,3]
[349849703,1737460239163,-500.0,0.00021917,3]
[349849705,1737460239172,-500.0,0.00021917,3]
[349849707,1737460239181,-702.52,0.00021917,3]
[349849709,1737460239191,-500.0,0.00021917,3]
[349849711,1737460239200,-522.42,0.00021917,3]
[349849713,1737460239209,-11.71210892,0.00021917,3]
[349849722,1737460239286,-488.28789108,0.00021917,3]
[349849724,1737460239295,-500.0,0.00021917,3]
[349849726,1737460239304,-500.0,0.00021917,3]
[349849728,1737460239314,-2310.72,0.00021917,3]
[349849730,1737460239324,-500.0,0.00021917,3]
[349849732,1737460239333,-10032.61,0.00021917,3]
[349849734,1737460239342,-500.0,0.00021917,3]
[349849736,1737460239352,-500.0,0.00021917,3]
[349849738,1737460239361,-500.0,0.00021917,3]
[349849740,1737460239370,-500.0,0.00021917,3]
[349849742,1737460239379,-500.0,0.00021917,3]
[349849744,1737460239389,-538.69,0.00021917,3]
[349849746,1737460239398,-500.0,0.00021917,3]
[349849748,1737460239407,-708.73,0.00021917,3]
[349849750,1737460239416,-500.0,0.00021917,3]
[349849752,1737460239426,-500.0,0.00021917,3]
[349849754,1737460239435,-844.31,0.00021917,3]
[349849756,1737460239444,-544.31721479,0.00021917,3]
[349849758,1737460239453,-746.9,0.00021917,3]
[349849760,1737460239462,-1208.44,0.00021917,3]
[349849762,1737460239471,-500.0,0.00021917,3]
[349849764,1737460239480,-500.0,0.00021917,3]
[349849766,1737460239490,-500.0,0.00021917,3]
[349849768,1737460239499,-2048.23,0.00021917,3]
[349849770,1737460239509,-500.0,0.00021917,3]
[349849772,1737460239518,-500.0,0.00021917,3]
[349849773,1737460239527,-704.53,0.00021917,3]
[349849775,1737460239537,-652.14,0.00021917,3]
[349849777,1737460239546,-500.0,0.00021917,3]
[349849779,1737460239555,-500.0,0.00021917,3]
[349849781,1737460239565,-509.22,0.00021917,3]
[349849783,1737460239577,-629.77,0.00021917,3]
[349849785,1737460239586,-174.74410633,0.00021954,2]
[349849786,1737460239595,-188.91,0.00022,2]
[349849788,1737460239605,-1000.0,0.00022,22]
[349849790,1737460239614,-874.59309344,0.00022003,3]
[349849792,1737460239623,-500.0,0.00022052,3]
[349849794,1737460239632,-52.23138245,0.00022053,3]
[349849899,1737460240900,-1960.22,0.00021917,3]
[349849901,1737460240909,-447.76861755,0.00022053,3]
[349849903,1737460240919,-461.43,0.00022053,3]
[349849905,1737460240929,-500.0,0.00022054,3]
[349849907,1737460240938,-500.0,0.00022054,3]
[349849909,1737460240947,-500.0,0.00022054,3]
[349849911,1737460240956,-500.0,0.00022054,3]
[349849913,1737460240967,-500.0,0.00022054,2]
[349849915,1737460240977,-500.0,0.00022054,3]
[349849917,1737460240986,-500.0,0.00022054,3]
[349849919,1737460240996,-760.48,0.00022054,3]
[349849921,1737460241006,-5253.55,0.00022054,3]
[349849923,1737460241016,-500.0,0.00022054,3]
[349849924,1737460241026,-500.0,0.00022054,3]
[349849925,1737460241035,-185.1,0.00022054,3]
[349849926,1737460241045,-500.0,0.00022054,3]
[349849927,1737460241054,-500.0,0.00022054,3]
[349849928,1737460241064,-3258.32,0.00022054,3]
[349849929,1737460241073,-500.0,0.00022054,3]
[349849931,1737460241083,-702.52,0.00022054,3]
[349849933,1737460241093,-203.27018988,0.00022054,3]
[349849935,1737460241102,-522.42,0.00022054,3]
[349849937,1737460241111,-500.0,0.00022054,3]
[349849939,1737460241121,-500.0,0.00022054,3]
[349849941,1737460241129,-500.0,0.00022054,3]
[349849943,1737460241139,-2310.72,0.00022054,3]
[349849945,1737460241148,-10032.61,0.00022054,3]
[349849947,1737460241157,-500.0,0.00022054,3]
[349849949,1737460241166,-500.0,0.00022054,3]
[349849951,1737460241176,-500.0,0.00022054,3]
[349849953,1737460241185,-538.69,0.00022054,3]
[349849955,1737460241195,-708.73,0.00022054,3]
[349849957,1737460241204,-500.0,0.00022054,3]
[349849959,1737460241213,-500.0,0.00022054,3]
[349849962,1737460241223,-844.31,0.00022054,3]
[349849964,1737460241233,-746.9,0.00022054,3]
[349849966,1737460241242,-1208.44,0.00022054,3]
[349849968,1737460241251,-500.0,0.00022054,3]
[349849970,1737460241261,-500.0,0.00022054,3]
[349849972,1737460241270,-500.0,0.00022054,3]
[349849974,1737460241279,-2048.23,0.00022054,3]
[349849976,1737460241288,-500.0,0.00022054,3]
[349849978,1737460241297,-500.0,0.00022054,3]
[349849980,1737460241306,-704.53,0.00022054,3]
[349849982,1737460241317,-652.14,0.00022054,3]
[349849984,1737460241327,-500.0,0.00022054,3]
[349849986,1737460241336,-500.0,0.00022054,3]
[349849988,1737460241346,-509.22,0.00022054,3]
[349849990,1737460241356,-629.77,0.00022054,3]
[349849992,1737460241365,-1960.22,0.00022054,3]
[349849994,1737460241375,-1796.01172821,0.00022055,2]
[349850186,1737460243677,-725.1,0.00021917,3]
[349850188,1737460243688,-500.0,0.00021917,3]
[349850190,1737460243698,-725.1,0.00022054,3]
[349850192,1737460243708,-500.0,0.00022054,3]
[349850194,1737460243717,-9498.54145909,0.00022055,2]
[349850196,1737460243727,-300.0,0.000221,10]
[349850197,1737460243736,-874.59309344,0.00022107,3]
[349850198,1737460243746,-455.70474889,0.0002218,2]
[349850199,1737460243756,-500.0,0.00022191,3]
[349850200,1737460243766,-528.37,0.00022191,3]
[349850201,1737460243775,-480.56244562,0.00022191,3]
[349850202,1737460243784,-500.0,0.00022191,3]
[349850203,1737460243794,-500.0,0.00022191,2]
[349850204,1737460243804,-500.0,0.00022191,3]
[349850206,1737460243813,-500.0,0.00022191,3]
[349850208,1737460243823,-760.48,0.00022191,3]
[349850210,1737460243835,-5253.55,0.00022191,3]
[349850211,1737460243844,-500.0,0.00022191,3]
[349850212,1737460243853,-500.0,0.00022191,3]
[349850213,1737460243863,-500.0,0.00022191,3]
[349850214,1737460243872,-3258.32,0.00022191,3]
[349850215,1737460243883,-500.0,0.00022191,3]
[349850216,1737460243895,-702.52,0.00022191,3]
[349850217,1737460243905,-522.42,0.00022191,3]
[349850218,1737460243915,-500.0,0.00022191,3]
[349850219,1737460243926,-500.0,0.00022191,3]
[349850220,1737460243936,-326.84,0.00022191,3]
[349850221,1737460243946,-2310.72,0.00022191,3]
[349850222,1737460243955,-10032.61,0.00022191,3]
[349850224,1737460243966,-500.0,0.00022191,3]
[349850226,1737460243976,-500.0,0.00022191,3]
[349850228,1737460243986,-500.0,0.00022191,3]
[349850230,1737460243996,-538.69,0.00022191,3]
[349850232,1737460244006,-708.73,0.00022191,3]
[349850233,1737460244016,-500.0,0.00022191,3]
[349850235,1737460244025,-500.0,0.00022191,3]
[349850237,1737460244035,-844.31,0.00022191,3]
[349850239,1737460244044,-746.9,0.00022191,3]
[349850241,1737460244054,-1208.44,0.00022191,3]
[349850243,1737460244064,-500.0,0.00022191,3]
[349850244,1737460244074,-500.0,0.00022191,3]
[349850245,1737460244085,-500.0,0.00022191,3]
[349850246,1737460244095,-2048.23,0.00022191,3]
[349850248,1737460244104,-500.0,0.00022191,3]
[349850250,1737460244114,-500.0,0.00022191,3]
[349850252,1737460244123,-704.53,0.00022191,3]
[349850254,1737460244133,-652.14,0.00022191,3]
[349850256,1737460244142,-500.0,0.00022191,3]
[349850258,1737460244151,-243.01490685,0.00022191,3]
[349850260,1737460244160,-509.22,0.00022191,3]
[349850262,1737460244170,-629.77,0.00022191,3]
[349850264,1737460244179,-1960.22,0.00022191,3]
[349850266,1737460244188,-725.1,0.00022191,3]
[349850268,1737460244197,-500.0,0.00022191,3]
[349850270,1737460244209,-874.59309344,0.0002221,3]
[349850272,1737460244219,-874.59309344,0.00022314,3]
[349850274,1737460244227,-500.0,0.00022328,3]
[349850276,1737460244237,-420.92,0.00022328,3]
[349850277,1737460244246,-244.00855015,0.00022328,2]
[349850279,1737460244256,-500.0,0.00022328,3]
[349850291,1737460244345,-500.0,0.00022328,3]
[349850293,1737460244373,-760.48,0.00022328,3]
[349850294,1737460244383,-5253.55,0.00022328,3]
[349850295,1737460244393,-500.0,0.00022328,3]
[349850296,1737460244403,-500.0,0.00022328,3]
[349850297,1737460244413,-500.0,0.00022328,3]
[349850298,1737460244422,-3258.32,0.00022328,3]
[349850299,1737460244432,-500.0,0.00022328,3]
[349850300,1737460244441,-702.52,0.00022328,3]
[349850301,1737460244451,-522.42,0.00022328,3]
[349850302,1737460244460,-500.0,0.00022328,3]
[349850303,1737460244469,-500.0,0.00022328,3]
[349850304,1737460244479,-2310.72,0.00022328,3]
[349850305,1737460244487,-8161.34306046,0.00022328,3]
[349850405,1737460246733,-1871.26693954,0.00022328,3]
[349850406,1737460246743,-500.0,0.00022328,3]
[349850407,1737460246753,-500.0,0.00022328,3]
[349850408,1737460246763,-108.45312046,0.00022328,3]
[349850418,1737460384883,151.0,0.00024,120]
[349850419,1737460478683,1510.0,0.00024,120]
[349850434,1737460832284,502.0,0.0001505,2]
[349850435,1737460854317,200.894377,0.00013973,2]
[349850442,1737461242087,-445.28583771,0.00020228,2]
[349850443,1737461242109,-200.894377,0.00020447,2]
[349850444,1737461242131,-500.0,0.00020613,2]
[349850445,1737461242153,-257.9980682,0.00020896,2]
[349850446,1737461242175,-1000.0,0.00021,21]
[349850447,1737461242200,-1130.0,0.00021037,2]
[349850448,1737461242221,-2019.05,0.00021396,2]
[349850449,1737461242243,-313.791,0.0002147,2]